Cogmind - Beta 16 @@@ ROGUE MODE // 2026.01.27 @ 01:54:53 Player: Bity Result: Destroyed by S-27 Virus with Autogun Performance ------------- Evolutions (6) 3000 Regions Visited (15) 3000 Robots Destroyed (176) 880 Value Destroyed (7159) 7159 Prototype IDs (39) 780 Alien Tech Used (1) 200 Bonus (3453) 3453 TOTAL SCORE: 18472 Bonus ------- High Alert Combat Kills 113 Follower Combat Kills 1891 Network Hubs Disabled 200 Registered with UFD 300 Met Optimus in HQ 500 Met Warlord at Base 500 MAIN.C Attacked Warlord 500 Built Enhanced Grunts 300 Friendly Fire -851 Cogmind --------- Core Integrity 0/1150 Matter 189/300 Energy 80/100 System Corruption 4% Temperature Warm (189) Movement Core (50) Location -4/Armory Parts ------- > --- POWER (3) -------- (None) > --- PROPULSION (6) --- (None) > --- UTILITY (9) ------ (None) > --- WEAPON (4) ------- (None) > --- INVENTORY (5) ---- Heavy Antimatter Reactor High-capacity Storage Unit Improved Weapon Cycler Reaction Control System Peak State ------------ > --- POWER ------------ Light Antimatter Reactor Vortex Chain Reactor > --- PROPULSION ------- Improved Medium Treads Advanced Medium Treads Centrium Heavy Treads Centrium Heavy Treads > --- UTILITY ---------- Advanced Cooling System Advanced Cooling System High-capacity Storage Unit Enhanced Optical Array Experimental Core Analyzer Particle Charger Improved Weapon Cycler Improved Weapon Cycler Advanced Shield Generator > --- WEAPON ----------- Variable Charge Gun Cooled Plasma Cannon Matter Neutralizer Enhanced Coil Gun > --- INVENTORY -------- Medium Treads Humpback Improved Matter Compressor Experimental Cloaking Device Enhanced Scrap Shield Advanced Shield Generator Improved Force Field Advanced Drone Bay Dimensional Node Initializer Cooled Plasma Cannon Vortex Driver Advanced KE Penetrator Smartbomb Launcher Improved Remote Datajack Multitool Heavy Pick [Rating: 162] Favorites ----------- Power Ion Engine Engine Ion Engine Power Core Fission Core Reactor Quantum Reactor Propulsion Centrium Heavy Treads Treads Centrium Heavy Treads Leg Flexi-carbon Leg Wheel Compact Wheel Hover Unit Cooled Aerolev Unit Flight Unit Impulse Thruster Utility High-capacity Storage Unit Device Advanced Cooling System Storage High-capacity Storage Unit Processor Enhanced Optical Array Hackware System Mapper Protection Hardened Heavy Armor Plating Weapon Cooled Plasma Cannon Energy Gun Advanced Variable Charge Gun Energy Cannon Cooled Plasma Cannon Ballistic Gun High-powered Shotgun Ballistic Cannon Magnetic Acceleration Cannon Launcher EMP Blaster Special Weapon Multitool Impact Weapon Maul Slashing Weapon Makeshift Axe Piercing Weapon Heavy Pick Special Melee Weapon Dirty Datajack Build | -11 -10 -10 -9 -6 -6 -6 -6 -6 -5 -5 -5 -5 -4 -4 -4 ------- Run | Yrd Mat Sub Scr Fac Ext Cet Arc Hub Fac Upp Upp War Pro Fac Arm Slots Evolved 12 | . . . . 8 . . . . 2 . . . . 2 . Power 1 | . . . . 1 . . . . . . . . . . . Propulsion 3 | . . . . 3 . . . . . . . . . . . Utility 6 | . . . . 3 . . . . 2 . . . . 1 . Weapon 2 | . . . . 1 . . . . . . . . . 1 . Parts Attached 191 | . 4 9 7 38 58 10 3 . 17 3 6 11 3 13 9 Power 27 | . . 1 . 5 10 1 2 . 1 . 1 1 1 3 1 Engine 8 | . . 1 . 2 5 . . . . . . . . . . Core 11 | . . . . 2 5 . 2 . 1 . 1 . . . . Reactor 8 | . . . . 1 . 1 . . . . . 1 1 3 1 Propulsion 61 | . 2 3 5 12 24 3 . . 4 1 1 . . 3 3 Treads 22 | . 2 2 1 2 4 3 . . 4 1 1 . . 2 . Leg 20 | . . . . 5 15 . . . . . . . . . . Wheel 16 | . . 1 4 5 5 . . . . . . . . 1 . Hover 1 | . . . . . . . . . . . . . . . 1 Flight 2 | . . . . . . . . . . . . . . . 2 Utility 57 | . 1 2 1 12 11 2 1 . 8 1 3 7 1 4 3 Device 33 | . . 1 1 5 4 1 1 . 6 . 3 5 1 4 1 Storage 5 | . 1 1 . . . . . . 1 1 . . . . 1 Processor 8 | . . . . 4 2 . . . 1 . . 1 . . . Hackware 1 | . . . . . . . . . . . . 1 . . . Protection 10 | . . . . 3 5 1 . . . . . . . . 1 Artifact . | . . . . . . . . . . . . . . . . Weapon 46 | . 1 3 1 9 13 4 . . 4 1 1 3 1 3 2 Energy Gun 13 | . . 1 1 1 4 3 . . . . 1 1 . 1 . Energy Cannon 8 | . . 1 . 1 . . . . 2 1 . 1 . 2 . Ballistic Gun 13 | . . . . 3 6 1 . . 1 . . . 1 . 1 Ballistic Cannon 1 | . . . . . 1 . . . . . . . . . . Launcher 2 | . . . . 1 . . . . . . . . . . 1 Special Weapon 3 | . . . . 2 . . . . . . . 1 . . . Impact Weapon 1 | . 1 . . . . . . . . . . . . . . Slashing Weapon 3 | . . 1 . . 2 . . . . . . . . . . Piercing Weapon 1 | . . . . . . . . . 1 . . . . . . Special Melee Weapon 1 | . . . . 1 . . . . . . . . . . . Unidentified Prototypes 22 | . . 1 . 2 . 3 . . 3 . . 8 . . 5 Parts Lost 100 | . . 4 . 30 31 . . . 1 . 1 2 2 17 12 Power 17 | . . 1 . 5 6 . . . . . . 1 1 3 . Propulsion 41 | . . 2 . 10 18 . . . . . . . . 7 4 Utility 21 | . . . . 8 2 . . . 1 . 1 . 1 5 3 Weapon 21 | . . 1 . 7 5 . . . . . . 1 . 2 5 Highest Loss Streak 16 | . . 3 . 16 9 . . . 1 . 1 1 2 14 7 To Critical Strikes 1 | . . . . 1 . . . . . . . . . . . Average Backups 16 | 6 8 15 15 15 16 17 18 18 17 17 16 16 16 15 3 Power . | 1 1 1 2 1 . . . . . . . . . . . Propulsion 2 | 4 3 4 3 4 3 3 4 4 3 1 1 2 2 1 . Utility 7 | . . 4 6 6 8 9 9 9 9 10 8 7 7 5 1 Weapon 3 | 1 2 3 . . 2 4 4 4 4 4 4 4 4 4 1 Tool/Special . | . . . . . . . . . . . . . . . . Unused Backups 52 | . 6 13 11 4 7 1 . . 4 1 1 . . 1 3 Power 5 | . . . 3 1 . . . . . . . . . . 1 Propulsion 20 | . 4 4 5 1 4 . . . . . 1 . . 1 . Utility 14 | . 2 2 2 2 1 1 . . 2 1 . . . . 1 Weapon 12 | . . 7 1 . 1 . . . 2 . . . . . 1 Tool/Special 1 | . . . . . 1 . . . . . . . . . . Average Slot Usage (%) 86 | . 85 94 85 56 93 84 83 83 83 85 86 86 84 86 16 Engine 5 | . 14 13 14 2 3 5 1 . . . . . . . . Core 4 | . . . . 1 10 6 9 11 10 10 10 7 . . . Reactor 2 | . . . . 1 . 3 5 5 5 5 5 5 9 8 . Treads 19 | . 27 27 19 5 4 21 22 22 20 20 20 20 20 18 . Leg 2 | . . . . 1 17 . . . . . . . . . . Wheel 2 | . . . 8 10 6 2 . . . . . . . . . Device 12 | . . 9 . 4 4 . 1 5 18 20 23 29 24 26 3 Storage 8 | . 14 14 14 3 5 5 5 5 5 5 5 5 5 4 1 Processor 4 | . . . . 5 16 . . . 4 5 5 5 10 8 . Protection 2 | . . . . 2 4 21 20 16 5 5 3 . . . . Energy Gun 8 | . 18 16 14 1 2 9 11 11 2 5 5 2 4 3 1 Energy Cannon 3 | . . . . 1 . . . . 7 10 10 6 9 6 2 Ballistic Gun 1 | . . . . 2 9 6 5 2 . . . . 1 4 1 Slashing Weapon 3 | . . 7 14 3 . . . . . . . . . . . Peak Build Rating 162 | 6 11 37 41 73 85 107 109 109 128 126 132 145 151 162 75 Average Rating 79 | 6 9 17 37 55 61 96 106 106 117 125 129 129 148 151 25 On Entrance 78 | 6 6 10 37 22 63 59 105 109 104 124 126 132 145 151 55 Avg Prop Armor Cover (%) 9 | . . 11 . 5 11 6 5 . . . . 8 . 2 14 Naked Turns 103 | . . . . . . . . . . . . . . . 103 Heaviest Build 267 | 12 48 210 212 267 106 130 135 131 138 129 133 127 131 135 80 Greatest Support 220 | 20 46 46 46 100 120 208 208 208 216 216 218 218 218 220 28 Greatest Overweight (x) 15 | . 1 10 6 15 2 4 . . . . . . . 10 2 Average Overweight (x) 1 | . . 1 4 4 . . . . . . . . . . . Largest Inventory Capacity 35 | 8 20 35 35 35 20 20 20 20 20 20 20 20 20 20 35 Average Capacity 22 | 8 15 23 33 29 20 20 20 20 20 20 20 20 20 20 9 Most Carried 35 | 8 9 35 35 26 20 20 20 20 20 20 20 20 20 20 15 Average Carried 20 | 6 8 19 30 18 18 19 20 20 19 19 19 19 19 19 5 Final Capacity 35 | 8 20 35 20 20 20 20 20 20 20 20 20 20 20 20 5 Final Carried 35 | 6 9 35 19 18 20 20 20 20 20 20 20 20 20 17 4 Class Distribution -------------------- 36% | Scavenger-Tank 19% | Hauler-Mutant 19% | Mutant 10% | Scavenger-Gunner 8% | Scavenger-Mutant Dominant Class ---------------- Mutant | -10/Materials Mutant | -10/Subcaves Hauler-Mutant | -9/Scraptown Derelict-Mutant | -6/Factory Scavenger-Gunner | -6/Extension Scavenger-Tank | -6/Cetus Scavenger-Tank | -6/Archives Scavenger-Tank | -6/Hub_04(d) Scavenger-Tank | -5/Factory Scavenger-Tank | -5/Upper Caves Scavenger-Tank | -5/Upper Caves Scavenger-Tank | -5/Warlord Scavenger-Tank | -4/Proximity Caves Scavenger-Gunner | -4/Factory Mutant | -4/Armory Resources | -11 -10 -10 -9 -6 -6 -6 -6 -6 -5 -5 -5 -5 -4 -4 -4 ----------- Run | Yrd Mat Sub Scr Fac Ext Cet Arc Hub Fac Upp Upp War Pro Fac Arm Matter Collected 5865 | 200 40 110 70 596 2055 140 206 76 463 370 135 186 352 491 375 Remotely . | . . . . . . . . . . . . . . . . Salvage Created 8635 | 185 . 262 . 482 2262 . . 53 1444 78 857 59 818 2003 132 Parts 378 | 12 . 15 . 20 90 . . 2 49 5 22 . 56 99 8 Haulers Intercepted 11 | . . . . . 5 . . . 4 . . . . 2 . Recyclers Shooed 11 | 1 . . . 6 3 . . . . . . . . 1 . Parts Field Recycled . | . . . . . . . . . . . . . . . . Retrieved Matter . | . . . . . . . . . . . . . . . . Parts Self-Destructed 123 | . . 25 . . . . . . . 24 20 . 54 . . Prevented 1 | . . . . . . . . . . 1 . . . . . Parts Restored . | . . . . . . . . . . . . . . . . Kills | -11 -10 -10 -9 -6 -6 -6 -6 -6 -5 -5 -5 -5 -4 -4 -4 ------- Run | Yrd Mat Sub Scr Fac Ext Cet Arc Hub Fac Upp Upp War Pro Fac Arm Combat Hostiles Destroyed 123 | . . 3 . 9 21 . . . 17 1 14 1 24 25 8 Melee 4 | . . . . 4 . . . . . . . . . . . Guns 49 | . . 2 . 2 19 . . . 1 . 5 . 9 11 . Cannons 59 | . . 1 . 3 . . . . 15 1 9 1 13 14 2 AOE 7 | . . . . . 1 . . . . . . . . . 6 Classes Destroyed 21 | 2 . 1 . 5 7 . . . . . 3 . 1 1 1 Worker 9 | . . . . 1 . . . . 1 . . . . 7 . Builder 7 | . . . . . 5 . . . 1 . . . . 1 . Tunneler 6 | 5 . . . . 1 . . . . . . . . . . Hauler 11 | . . . . . 5 . . . 4 . . . . 2 . Recycler 8 | 1 . . . . 6 . . . . . . . . 1 . Carrier 1 | . . . . . . . . . . . . . . 1 . Operator 2 | . . . . . 1 . . . . . . . . 1 . Drone 2 | . . . . . . . . . . . . . 2 . . Watcher 6 | . . . . . 3 . . . 1 . . . . 2 . Swarmer 33 | . . . . . 6 . . . . . 4 . 17 2 4 Saboteur 2 | . . . . 1 . . . . . . . . . . 1 Grunt 38 | . . . . 1 8 . . . 11 . 6 . 1 11 . Brawler 1 | . . . . . . . . . . . 1 . . . . Sentry 7 | . . . . . 4 . . . . . 1 . 1 1 . Specialist 2 | . . . . . . . . . . . . . . . 2 Hunter 15 | . . . . 5 1 . . . 2 1 . . 2 4 . Programmer 13 | . . . . 2 . . . . 4 . . . 1 6 . Behemoth 5 | . . . . . 2 . . . . . 1 . . 1 1 Subdweller 5 | . . 5 . . . . . . . . . . . . . Decomposer 1 | . . . . . . . . . . . 1 . . . . Samaritan 1 | . . . . . . . . . . . 1 . . . . Thug 2 | . . . . . . . . 1 . . . 1 . . . Mutant 1 | . . . . . . . . . . . 1 . . . . Best Kill Streak 8 | 4 . 1 . 2 7 . . . 4 1 3 1 6 8 6 Combat Bots Only 6 | . . 1 . 2 4 . . . 3 1 3 1 6 4 6 Max Kills in Single Turn 6 | 1 . 1 . 1 2 . . 1 2 1 1 1 1 6 3 Gunslinging . | . . . . . . . . . . . . . . . . Exploded 3 | . . . . . 1 . . . . . . . . . 3 Melee 1 | . . . . 1 . . . . . . . . . . . Uniques/NPCs Destroyed . | . . . . . . . . . . . . . . . . Combat | -11 -10 -10 -9 -6 -6 -6 -6 -6 -5 -5 -5 -5 -4 -4 -4 -------- Run | Yrd Mat Sub Scr Fac Ext Cet Arc Hub Fac Upp Upp War Pro Fac Arm Hostile Shots Fired 1510 | . . 46 . 363 350 1 . 27 80 3 58 106 141 189 146 Missed 462 | . . 12 . 99 129 . . 16 27 . 17 33 46 46 37 Hits 1048 | . . 34 . 264 221 1 . 11 53 3 41 73 95 143 109 Projectile 1048 | . . 34 . 264 221 1 . 11 53 3 41 73 95 143 109 AOE 5 | . . 5 . . . . . . . . . . . . . Critical Strikes 27 | . . . . 5 7 . . . 1 . 1 7 . 3 3 Part Disruptions 5 | . . . . . . . . . . . . 2 . . 3 Damage Taken 17201 | . . 825 . 3392 3814 15 . 91 947 41 653 1392 1116 2605 2310 Core 2320 | . . 203 . 453 378 . . . 21 . . 68 45 273 879 Absorbed by Shields 1490 | . . . . 158 . 15 . . . . 88 124 296 673 136 Reduced by Siege Mode 89 | . . . . . . . . . . . 11 . 38 40 . Ignored by Resistances 199 | . . . . 199 . . . . . . . . . . . Regen/Repaired (Parts) 625 | . . . . . . . . . . . . 625 . . . Core Remaining (%) 51 | 100 . . 18 . . . . 2 . . . . 86 . . Volleys Fired 478 | 13 . 27 . 55 156 1 . 6 56 3 30 6 41 60 24 Largest 4 | 2 . 2 . 2 3 1 . 3 3 3 3 3 3 4 3 Hottest 380 | 100 . 110 . 154 218 28 . 195 380 150 380 150 145 320 325 Shots Fired 1043 | 26 . 47 . 64 300 1 1 10 131 9 85 11 119 202 37 Gun 595 | 26 . 32 . 48 266 1 1 10 18 3 27 1 46 104 12 Cannon 432 | . . 15 . 13 30 . . . 110 6 58 10 73 98 19 Launcher 9 | . . . . 3 . . . . . . . . . . 6 Special 7 | . . . . . 4 . . . 3 . . . . . . Kinetic 345 | . . . . 33 224 1 . 3 2 . . . 15 59 8 Thermal 664 | 26 . 47 . 28 64 . 1 7 129 9 85 9 103 140 16 Explosive 6 | . . . . . . . . . . . . . . . 6 Electromagnetic 15 | . . . . 3 12 . . . . . . . . . . Entropic 13 | . . . . . . . . . . . . 2 1 3 7 Robot Hit Streak 62 | 9 . 10 . 8 62 . 1 2 8 7 13 3 9 21 10 Robot Miss Streak 7 | 2 . 1 . 4 7 1 . 2 5 2 2 2 5 4 4 Penetration Max 1 | . . . . . 1 . . 1 . . . . . 1 1 Secondary Targets . | . . . . . . . . . . . . . . . . Shots Hit Robots 690 | 19 . 44 . 56 226 . 1 4 80 6 51 5 56 119 23 Core Hits 385 | 7 . 8 . 20 165 1 . 2 36 3 28 1 28 75 11 Critical Kills 6 | . . . . . 1 . . . 1 . . . 3 1 . Critical Parts Destroyed 9 | . . . . . 1 . . 2 . . . . . 6 . Critical Strikes 26 | 2 . 1 . . 6 . . 2 1 . . . 3 11 . Burn 5 | 2 . 1 . . 2 . . . . . . . . . . Meltdown 4 | . . . . . 1 . . . 1 . . . 2 . . Destroy 12 | . . . . . 1 . . 2 . . . . 1 8 . Blast 1 | . . . . . 1 . . . . . . . . . . Sever 1 | . . . . . 1 . . . . . . . . . . Sunder 3 | . . . . . . . . . . . . . . 3 . Melee Attacks 105 | . 2 28 . 25 28 . . . 3 . . . . 19 . Impact 15 | . 2 13 . . . . . . . . . . . . . Slashing 50 | . . 15 . 20 13 . . . 2 . . . . . . Piercing 40 | . . . . 5 15 . . . 1 . . . . 19 . Sneak Attacks 17 | . . 8 . . 8 . . . 1 . . . . . . Combat Hostiles 1 | . . . . . 1 . . . . . . . . . . Follow-up Attacks . | . . . . . . . . . . . . . . . . Damage Inflicted 22873 | 234 . 887 . 1377 5436 15 19 183 3374 243 2054 176 1741 5198 1936 Guns 9818 | 234 . 228 . 561 4510 15 18 183 510 86 612 . 694 1875 292 Cannons 9795 | . . 87 . 310 624 . . . 2731 157 1442 176 1047 2392 829 Explosions 1849 | . . . . 103 . . . . . . . . . 931 815 Melee 1394 | . . 572 . 403 302 . . . 117 . . . . . . Ramming 8 | . . . . . . . 1 . 7 . . . . . . Kinetic 5774 | . . . . 393 3827 15 . 117 . . . . 248 998 176 Thermal 13162 | 234 . 315 . 478 1265 . 18 66 3250 243 2054 176 1493 3147 423 Explosive 1564 | . . . . . . . . . . . . . . 749 815 Electromagnetic 145 | . . . . 103 42 . . . . . . . . . . Impact 115 | . . 115 . . . . . . . . . . . . . Slashing 1235 | . . 457 . 390 271 . . . 117 . . . . . . Piercing 44 | . . . . 13 31 . . . . . . . . . . Entropic 826 | . . . . . . . . . . . . . . 304 522 Highest Corruption 15 | . . . . 7 7 7 7 7 . . . 15 15 2 4 Average Corruption 7 | . . . . 5 7 7 7 7 . . . 14 13 1 3 Corruption Purged 3 | . . . . . . . . . . . . . 3 . . Corruption Blocked . | . . . . . . . . . . . . . . . . Effects 325 | . . . . 16 127 20 12 18 . . . 39 79 9 5 Message Errors 80 | . . . . 1 32 3 2 7 . . . 13 20 2 . Matter Fused 85 | . . . . 3 35 8 7 1 . . . 6 22 2 1 Heat Flow Errors 45 | . . . . 3 16 3 1 3 . . . 4 12 2 1 Energy Discharges 35 | . . . . 5 12 1 . 3 . . . 2 8 3 1 Parts Rejected 2 | . . . . 1 1 . . . . . . . . . . Parts Fused 2 | . . . . . 1 . . . . . . . 1 . . Data Loss (minor) 33 | . . . . 2 12 3 . 1 . . . 8 7 . . Data Loss (major) 19 | . . . . 1 7 1 1 1 . . . 3 4 . 1 Misfires 9 | . . . . . 2 . 1 1 . . . 1 3 . 1 Alerts 6 | . . . . . 4 1 . . . . . 1 . . . Misdirections 1 | . . . . . . . . . . . . . 1 . . Weapon Failures 8 | . . . . . 5 . . 1 . . . 1 1 . . Overload Shots 15 | . . . . . . . . . 10 . 2 . . 2 1 Overflow Damage 524 | . . 1 . 5 . . . . 155 35 61 19 28 156 64 Projectiles 393 | . . . . 1 . . . . 141 35 61 19 28 77 31 Explosions 112 | . . . . . . . . . . . . . . 79 33 Melee 19 | . . 1 . 4 . . . . 14 . . . . . . Knockbacks . | . . . . . . . . . . . . . . . . Impact . | . . . . . . . . . . . . . . . . Kinetic . | . . . . . . . . . . . . . . . . Secondary . | . . . . . . . . . . . . . . . . Self-Inflicted Damage 166 | . . . . 24 . . . . . . . . . 85 57 Shots 5 | . . . . 2 . . . . . . . . . 1 2 Rammed 2 | . . . . . . . 1 . 1 . . . . . . Targets Rammed 2 | . . . . . . . 1 . 1 . . . . . . Kicked . | . . . . . . . . . . . . . . . . Crushed . | . . . . . . . . . . . . . . . . Highest Temperature 543 | 273 . . . 250 438 454 312 263 543 135 402 218 207 376 471 Average Temperature 121 | 130 . . . 65 115 114 173 85 134 67 122 96 84 102 196 Received Heat Transfer 2512 | . . 60 . 30 1121 . . 18 198 . 165 51 . 420 449 Effects 28 | . . . . . 14 3 4 . 4 . 1 . . 1 1 Shutdowns 7 | . . . . . 3 1 . . 2 . 1 . . . . Energy Bleed 7 | . . . . . 3 . 3 . 1 . . . . . . Interference 9 | . . . . . 5 2 . . . . . . . 1 1 Matter Decay 3 | . . . . . 1 . 1 . 1 . . . . . . Short Circuit 1 | . . . . . 1 . . . . . . . . . . Damage (minor) 1 | . . . . . 1 . . . . . . . . . . Siege Activations 18 | . . . . . . . . . . . 4 . 7 7 . Total Turns 445 | . . . . . . . . . . . 36 . 134 275 . Longest Duration 116 | . . . . . . . . . . . 20 . 90 116 . Martial Activations . | . . . . . . . . . . . . . . . . Shielding Activations . | . . . . . . . . . . . . . . . . Robots Disrupted . | . . . . . . . . . . . . . . . . Combat Hostiles . | . . . . . . . . . . . . . . . . Robots Corrupted . | . . . . . . . . . . . . . . . . Combat Hostiles . | . . . . . . . . . . . . . . . . Parts Fried . | . . . . . . . . . . . . . . . . Impact Corruptions 1 | . . 1 . . . . . . . . . . . . . Robots Melted 4 | . . . . . 1 . . . 1 . . . 2 . . Combat Hostiles 4 | . . . . . 1 . . . 1 . . . 2 . . Parts Melted 54 | 3 . 2 . 4 6 . . . 15 . 6 1 7 10 . Heat Transferred 18649 | 851 . 925 . 718 2536 . 37 111 4033 274 2472 250 2303 3682 457 Parts Sabotaged . | . . . . . . . . . . . . . . . . Parts Stolen . | . . . . . . . . . . . . . . . . Parts Stripped . | . . . . . . . . . . . . . . . . Power Chain Reactions 1 | . . . . 1 . . . . . . . . . . . Alert | -11 -10 -10 -9 -6 -6 -6 -6 -6 -5 -5 -5 -5 -4 -4 -4 ------- Run | Yrd Mat Sub Scr Fac Ext Cet Arc Hub Fac Upp Upp War Pro Fac Arm Maximum Alert Level 2 | . . . . . 2 1 . 1 1 . . . . 2 2 Low Security (%) 79 | 100 100 . . 100 88 49 100 88 89 . . . . 52 3 Level 1 15 | . . . . . 10 50 . 11 10 . . . . 23 94 Level 2 5 | . . . . . 1 . . . . . . . . 24 2 Level 3 . | . . . . . . . . . . . . . . . . Level 4 . | . . . . . . . . . . . . . . . . Level 5 . | . . . . . . . . . . . . . . . . High Security . | . . . . . . . . . . . . . . . . Max Security . | . . . . . . . . . . . . . . . . Peak Influence 641 | 10 16 . . 71 492 355 173 232 305 . . . . 641 400 Initial 354 | . . . . . 7 274 17 . 110 . . . . 354 247 Average 123 | 2 . . . 13 112 197 75 102 62 . . . . 246 304 Influence Increases 6608 | 30 17 354 . 380 1557 156 176 562 603 35 290 159 515 1488 286 Destroy 0b10 Robot/C 3420 | . . 220 . 260 820 80 80 180 340 20 260 40 440 520 160 Destroy 0b10 Robot/NC 295 | 30 . . . 5 110 5 . 25 35 5 . . 10 70 . Destroy Leader 526 | . . 10 . 60 106 . . 56 66 10 30 . 50 108 30 Allied During Kill 599 | . . 64 . 19 173 50 80 199 . . . 14 . . . Successful Hack 73 | . . . . . 21 . . . 18 . . . . 34 . Select Force Hacks 30 | . . . . 30 . . . . . . . . . . . Disable Machine 495 | . . . . . 135 . 15 30 90 . . . . 180 45 Destroy Structure 375 | . 2 . . 6 42 21 1 27 54 . . . . 186 36 Advance Influence 300 | . . . . . . . . . . . . . . 300 . Lose Combat Pursuer 495 | . 15 60 . . 150 . . 45 . . . 105 15 90 15 Influence Decreases 6335 | 30 17 216 138 363 1084 602 220 336 527 337 290 159 428 1069 519 Entered New Map 912 | . . . 138 . 10 216 27 . 116 113 . . . 33 259 Time Decay 3954 | 30 17 156 . 208 701 286 193 296 337 224 271 91 408 596 140 Search Patrol Dispatched 100 | . . . . . . . . . . . . . . 100 . Lost Part 700 | . . . . 113 238 . . . 10 . 9 20 20 170 120 Lost Ally 455 | . . 60 . 42 135 100 . 40 . . 10 48 . 20 . Purge Threat 214 | . . . . . . . . . 64 . . . . 150 . Squads Dispatched 28 | . 2 . . 2 4 . . 3 7 . . . . 9 1 Investigation 8 | . 1 . . 1 2 . . . 1 . . . . 3 . Extermination 10 | . . . . 1 . . . 2 2 . . . . 4 1 Reinforcement 10 | . 1 . . . 2 . . 1 4 . . . . 2 . Assault . | . . . . . . . . . . . . . . . . Garrison . | . . . . . . . . . . . . . . . . Intercept . | . . . . . . . . . . . . . . . . Searches Triggered 1 | . . . . . . . . . . . . . . 1 . Construction Impeded 2 | . . . . . . . . 1 1 . . . . . . Haulers Reinforced 4 | . . . . . . . . . 2 . . . . 2 . Active Scanning Responses . | . . . . . . . . . . . . . . . . Cargo Convoy Interrupts 1 | . . . . 1 . . . . . . . . . . . Stealth | -11 -10 -10 -9 -6 -6 -6 -6 -6 -5 -5 -5 -5 -4 -4 -4 --------- Run | Yrd Mat Sub Scr Fac Ext Cet Arc Hub Fac Upp Upp War Pro Fac Arm Distress Signals 13 | . . . . . 3 4 . 2 . . . 2 . 2 . Communications Jammed . | . . . . . . . . . . . . . . . . Distress Signals . | . . . . . . . . . . . . . . . . Times Spotted 260 | . 1 22 . 16 56 . 4 13 24 2 14 29 27 38 14 Peak Tracking Total 14 | . 1 6 . 5 6 . 1 3 4 1 4 14 6 8 5 Tactical Retreats 19 | . 1 2 . . 5 . . 3 . . . 2 1 4 1 Traps | -11 -10 -10 -9 -6 -6 -6 -6 -6 -5 -5 -5 -5 -4 -4 -4 ------- Run | Yrd Mat Sub Scr Fac Ext Cet Arc Hub Fac Upp Upp War Pro Fac Arm Traps Triggered 9 | . 1 . . . 7 . . . . . . . . 1 . Indirectly . | . . . . . . . . . . . . . . . . Trap Hack Attempts . | . . . . . . . . . . . . . . . . Triggered . | . . . . . . . . . . . . . . . . Disarmed . | . . . . . . . . . . . . . . . . Reprogrammed . | . . . . . . . . . . . . . . . . Reused . | . . . . . . . . . . . . . . . . Traps Extracted . | . . . . . . . . . . . . . . . . Installed . | . . . . . . . . . . . . . . . . Triggered . | . . . . . . . . . . . . . . . . Machines | -11 -10 -10 -9 -6 -6 -6 -6 -6 -5 -5 -5 -5 -4 -4 -4 ---------- Run | Yrd Mat Sub Scr Fac Ext Cet Arc Hub Fac Upp Upp War Pro Fac Arm Machines Disabled 40 | . . 2 . . 10 . 1 2 6 . 2 1 . 13 3 Max in Single Turn 4 | . . 1 . . 1 . . . 1 . 1 1 . 4 2 Garrison Access 2 | . . . . . . . . . 1 . . . . 1 . Network Hub 1 | . . . . . . . . 1 . . . . . . . Energy Cycler 2 | . . . . . 2 . . . . . . . . . . Machines Repaired . | . . . . . . . . . . . . . . . . Machines Dismantled . | . . . . . . . . . . . . . . . . Machines Sabotaged . | . . . . . . . . . . . . . . . . Overloaded Fab Kills . | . . . . . . . . . . . . . . . . Hacking | -11 -10 -10 -9 -6 -6 -6 -6 -6 -5 -5 -5 -5 -4 -4 -4 --------- Run | Yrd Mat Sub Scr Fac Ext Cet Arc Hub Fac Upp Upp War Pro Fac Arm Machines Accessed 60 | . 1 4 5 2 7 3 . 2 11 2 1 11 . 11 . Terminals 26 | . 1 . . . 7 3 . 2 6 1 . . . 6 . Fabricators 3 | . . . . . . . . . 2 . . . . 1 . Repair Stations . | . . . . . . . . . . . . . . . . Recycling Units 4 | . . . . 1 . . . . 2 . . . . 1 . Scanalyzers 2 | . . . . . . . . . . . . . . 2 . Garrison Access 3 | . . . . 1 . . . . 1 . . . . 1 . Total Hacks 179 | . 3 8 31 4 16 7 . 2 35 2 1 21 . 49 . Successful 126 | . 2 8 31 2 4 1 . . 20 2 1 21 . 34 . Failed 53 | . 1 . . 2 12 6 . 2 15 . . . . 15 . Catastrophic 13 | . . . . . 1 2 . 1 3 . . . . 6 . Database Lockouts . | . . . . . . . . . . . . . . . . Manual 45 | . 1 . . 1 2 2 . 2 22 4 . . . 11 . Terminals 65 | . 3 . . . 16 7 . 2 20 1 . . . 16 . Fabricators 9 | . . . . . . . . . 6 . . . . 3 . Repair Stations . | . . . . . . . . . . . . . . . . Recycling Units 13 | . . . . 2 . . . . 8 . . . . 3 . Scanalyzers 26 | . . . . . . . . . . . . . . 26 . Garrison Access 4 | . . . . 2 . . . . 1 . . . . 1 . Terminal Hacks 81 | . 1 8 31 . 3 1 . . 11 2 1 21 . 2 . Record 52 | . . 5 25 . . 1 . . . 1 1 19 . . . Robot Analysis 7 | . . . 5 . . . . . 2 . . . . . . Open Door 7 | . . 1 . . 3 . . . . 1 . 2 . . . Branch Access Points 1 | . . . . . . . . . 1 . . . . . . Terminal Index 1 | . . . . . . . . . 1 . . . . . . Unreport Threat 2 | . . . . . . . . . 1 . . . . 1 . Maintenance Status 1 | . . . . . . . . . 1 . . . . . . Investigation Status 1 | . . . . . . . . . 1 . . . . . . Recall Investigation 2 | . . . . . . . . . 2 . . . . . . Recall Reinforcements 1 | . . . . . . . . . . . . . . 1 . Zone Layout 3 | . 1 . . . . . . . 2 . . . . . . Proto ID Catalog 2 | . . 1 1 . . . . . . . . . . . . Release Object 1 | . . 1 . . . . . . . . . . . . . Fabricator Hacks 6 | . . . . . . . . . 3 . . . . 3 . Network Status 3 | . . . . . . . . . 2 . . . . 1 . Load Schematic 1 | . . . . . . . . . . . . . . 1 . Build 2 | . . . . . . . . . 1 . . . . 1 . Repair Station Hacks . | . . . . . . . . . . . . . . . . Recycling Unit Hacks 2 | . . . . 1 . . . . . . . . . 1 . Report Inventory 2 | . . . . 1 . . . . . . . . . 1 . Scanalyzer 24 | . . . . . . . . . . . . . . 24 . Insert Component 8 | . . . . . . . . . . . . . . 8 . Analyze 8 | . . . . . . . . . . . . . . 8 . Retrieve Study 8 | . . . . . . . . . . . . . . 8 . Garrison Access Hacks 2 | . . . . . . . . . 1 . . . . 1 . Seal Access 2 | . . . . . . . . . 1 . . . . 1 . Unauthorized Hacks 11 | . 1 . . 1 1 . . . 5 . . . . 3 . Terminals 8 | . 1 . . . 1 . . . 4 . . . . 2 . Assimilate 1 | . . . . . . . . . 1 . . . . . . Botnet 7 | . 1 . . . 1 . . . 3 . . . . 2 . Fabricators . | . . . . . . . . . . . . . . . . Repair Stations . | . . . . . . . . . . . . . . . . Recycling Units 3 | . . . . 1 . . . . 1 . . . . 1 . Tunnel 1 | . . . . 1 . . . . . . . . . . . Fedlink 2 | . . . . . . . . . 1 . . . . 1 . Scanalyzers . | . . . . . . . . . . . . . . . . Garrison Access . | . . . . . . . . . . . . . . . . Data Cores Recovered . | . . . . . . . . . . . . . . . . Used . | . . . . . . . . . . . . . . . . Hacking Detections 17 | . 1 . . 1 6 3 . . 1 . . . . 5 . Full Trace Events 3 | . . . . . 1 . . . . . . . . 2 . Feedback Events 1 | . . . . . . . . . . . . . . 1 . Corruption 1 | . . . . . . . . . . . . . . 1 . Feedback Blocked . | . . . . . . . . . . . . . . . . Robot Schematics Acquired . | . . . . . . . . . . . . . . . . Robots Built . | . . . . . . . . . . . . . . . . Authchips . | . . . . . . . . . . . . . . . . Time . | . . . . . . . . . . . . . . . . Total Robot Build Rating . | . . . . . . . . . . . . . . . . Part Schematics Acquired 5 | . . . . . . . . . . . . . . 5 . Parts Built 3 | . . . . . . . . . 2 . . . . 1 . Authchips . | . . . . . . . . . . . . . . . . Time 269 | . . . . . . . . . 117 . . . . 152 . Total Part Build Rating 19 | . . . . . . . . . 14 . . . . 5 . Part Studies Acquired 8 | . . . . . . . . . . . . . . 8 . Parts Repaired . | . . . . . . . . . . . . . . . . Time . | . . . . . . . . . . . . . . . . Parts Recycled . | . . . . . . . . . . . . . . . . Recycled Matter . | . . . . . . . . . . . . . . . . Retrieved Matter . | . . . . . . . . . . . . . . . . Retrieved Components . | . . . . . . . . . . . . . . . . Parts Scanalyzed 7 | . . . . . . . . . . . . . . 7 . Part Schematics Acquired 5 | . . . . . . . . . . . . . . 5 . Parts Damaged 3 | . . . . . . . . . . . . . . 3 . Bothacking | -11 -10 -10 -9 -6 -6 -6 -6 -6 -5 -5 -5 -5 -4 -4 -4 ------------ Run | Yrd Mat Sub Scr Fac Ext Cet Arc Hub Fac Upp Upp War Pro Fac Arm Used RIF Installer . | . . . . . . . . . . . . . . . . Robots Hacked . | . . . . . . . . . . . . . . . . Non-combat . | . . . . . . . . . . . . . . . . Combat . | . . . . . . . . . . . . . . . . Robot Hacks Applied . | . . . . . . . . . . . . . . . . Relay Couplers Released . | . . . . . . . . . . . . . . . . Fabnet Peak Effective % . | . . . . . . . . . . . . . . . . Robots Rewired 18 | . . . . . 12 . . . . . . 5 . . 1 Allies Hacked 3 | . . . . . . . . . . . . 3 . . . Hacks Repelled . | . . . . . . . . . . . . . . . . Allies | -11 -10 -10 -9 -6 -6 -6 -6 -6 -5 -5 -5 -5 -4 -4 -4 -------- Run | Yrd Mat Sub Scr Fac Ext Cet Arc Hub Fac Upp Upp War Pro Fac Arm Total Allies 45 | . . 13 . 2 18 5 . . 1 . . 5 . . 1 Largest Group 10 | . . 9 5 4 9 10 8 7 1 . . 5 . . 1 Highest-Rated Group 771 | . . 172 95 82 403 771 579 420 10 . . 252 . . 64 Highest-Rated Ally 159 | . . 20 19 41 159 159 159 96 10 . . 64 . . 64 Total Orders 43 | . . . . . . 7 3 4 7 7 11 . 1 3 . STAY 1 | . . . . . . . . . . . . . . 1 . ROAM 7 | . . . . . . 3 1 1 . . 2 . . . . FOLLOW 10 | . . . . . . 4 2 3 1 . . . . . . EXPLORE 20 | . . . . . . . . . 4 5 8 . 1 2 . RETURN 5 | . . . . . . . . . 2 2 1 . . . . Ally Attacks 347 | . . 57 . 22 123 46 24 70 . . . 5 . . . Total Damage 7806 | . . 875 . 388 1903 1370 907 2117 . . . 246 . . . Kills 69 | . . 14 . 4 23 5 4 17 . . . 2 . . . Allies Corrupted 3 | . . . . 1 . . . . . . . 1 . 1 . Allies Melted 1 | . . . . . . . . . . . . 1 . . . Intel | -11 -10 -10 -9 -6 -6 -6 -6 -6 -5 -5 -5 -5 -4 -4 -4 ------- Run | Yrd Mat Sub Scr Fac Ext Cet Arc Hub Fac Upp Upp War Pro Fac Arm Active Infowar (turns) 13779 | . . . . 164 323 . . . 1615 2254 3391 1877 1900 2255 . Optics 13178 | . . . . . . . . . 1501 2254 3391 1877 1900 2255 . Sensors 3172 | . . . . 164 . . . . . . 989 1877 142 . . IFF 667 | . . . . . 323 . . . 344 . . . . . . Cloaking 8 | . . . . . . . . . . . . 8 . . . Robot Analysis Total 7 | . . . 5 . . . . . 2 . . . . . . Derelict Logs Recovered 11 | . . 1 5 . . . . . . 3 1 . 1 . . Drone Launches 20 | . . . . . . . . . 4 4 9 . 1 2 . Drone Recoveries 16 | . . . . . . . . . 4 4 7 . 1 . . Exploration | -11 -10 -10 -9 -6 -6 -6 -6 -6 -5 -5 -5 -5 -4 -4 -4 ------------- Run | Yrd Mat Sub Scr Fac Ext Cet Arc Hub Fac Upp Upp War Pro Fac Arm Turns Passed 32715 | 93 476 6837 4863 1249 3685 635 447 807 1615 2254 3391 1877 1900 2287 299 Spaces Moved 14310 | 40 221 2547 1585 531 2176 207 232 410 731 1067 1428 1063 972 843 257 Core 167 | . . . . 5 . . . . . . . . . . 162 Treads 10241 | . 217 2367 716 3 . 171 232 410 731 1067 1428 1063 972 841 23 Legs 1191 | 40 4 . . 63 1084 . . . . . . . . . . Wheels 2639 | . . 180 869 460 1092 36 . . . . . . . 2 . Hover 7 | . . . . . . . . . . . . . . . 7 Flight 65 | . . . . . . . . . . . . . . . 65 Fastest Speed 35 | 120 120 160 95 80 105 123 160 160 160 160 160 160 160 155 35 Average Speed 186 | 120 205 257 302 162 118 156 160 160 160 160 160 160 160 166 65 Slowest Speed 800 | 120 240 480 480 800 260 160 160 160 160 160 160 160 160 240 240 Overloaded Moves . | . . . . . . . . . . . . . . . . Propulsion Burnouts . | . . . . . . . . . . . . . . . . Robots Hopped . | . . . . . . . . . . . . . . . . Potential Cave-ins . | . . . . . . . . . . . . . . . . Cave-ins Triggered . | . . . . . . . . . . . . . . . . Exploration Rate (%) 60 | 3 43 95 86 12 89 61 97 31 25 98 99 95 97 21 12 Regions Visited 15 Branch Regions 11 Pre-discovered Areas 8 | . . 2 2 1 . . . . . 1 . . 1 1 . Known Exits Taken 5 | . . . . 1 1 . . 1 1 . . . . 1 . Unknown Exits Taken 10 | 1 1 1 1 . . 1 1 . . 1 1 1 1 . . Scrap Searched 15 | . . 5 4 . . . . . . 3 2 . 1 . . Spaces Dug 19 | . 2 . . . 5 . . . 1 . . . . 11 . Terrain Destroyed 263 | . 2 . . 8 15 . . . 26 2 27 7 48 104 24 Melee 19 | . 2 . . . 5 . . . 1 . . . . 11 . Projectile 175 | . . . . 1 10 . . . 25 2 27 7 48 50 5 AOE 69 | . . . . 7 . . . . . . . . . 43 19 Terrain Rammed . | . . . . . . . . . . . . . . . . Walls Destroyed . | . . . . . . . . . . . . . . . . Machines Disabled . | . . . . . . . . . . . . . . . . Actions | -11 -10 -10 -9 -6 -6 -6 -6 -6 -5 -5 -5 -5 -4 -4 -4 --------- Run | Yrd Mat Sub Scr Fac Ext Cet Arc Hub Fac Upp Upp War Pro Fac Arm Total 19539 | 60 241 2749 1659 825 2998 515 310 550 1076 1611 2487 1235 1261 1604 358 Wait 3665 | 4 2 63 17 109 300 278 67 133 210 528 1000 94 231 617 12 Move 14295 | 39 220 2546 1584 530 2175 206 231 409 730 1066 1427 1062 971 842 257 Hop . | . . . . . . . . . . . . . . . . Pick Up 222 | 2 7 49 30 44 39 1 2 . 16 3 8 5 1 11 4 Fast Attach 67 | . 1 1 . 17 17 3 . . 1 . . 4 4 5 14 Attach 100 | . . 5 2 28 24 1 . . 5 . 5 2 2 8 18 Detach 27 | . 1 1 . 4 4 2 . . . . . . 1 . 14 Swap 176 | . 3 6 10 10 45 14 5 1 28 5 9 10 8 22 . Drop 156 | 2 5 22 16 3 29 9 4 . 20 5 8 11 2 15 5 Fire 478 | 13 . 27 . 55 156 1 . 6 56 3 30 6 41 60 24 Melee 105 | . 2 28 . 25 28 . . . 3 . . . . 19 . Ram . | . . . . . . . . . . . . . . . . Kick . | . . . . . . . . . . . . . . . . Crush 2 | . . . . . . . 1 . 1 . . . . . . Escape Stasis 27 | . . . . . 27 . . . . . . . . . . Rewire 204 | . . 1 . . 152 . . . . . . 41 . . 10 Trap . | . . . . . . . . . . . . . . . . Miscellaneous 15 | . . . . . 2 . . 1 6 1 . . . 5 . Route ------- -11/Scrapyard -10/Materials (discovered 4 exits: [*Mat] / [*Min x2] / *Sub) -10/Subcaves (discovered 4 exits: [*Mat x2] / [*Rec] / *Scr) -9/Scraptown (discovered 2 exits: *Fac x2) -6/Factory -6/Extension (discovered 2 exits: *Fac / *Cet) -6/Cetus -6/Archives (discovered 3 exits: *Fac / *Hub x2) -6/Hub_04(d) -5/Factory (discovered 2 exits: *Upp x2) -5/Upper Caves -5/Upper Caves (discovered 2 exits: *Fac / *War) -5/Warlord -4/Proximity Caves -4/Factory (discovered 2 exits: Res / *Arm) -4/Armory History --------- Turn | Location | Event 20 | -11/Scrapyard | Discovered new exit (range 3) 94 | -11/Scrapyard | Entered Materials 95 | -10/Materials | Met a group of wandering Federalists 133 | -10/Materials | Discovered new exit (range 11) 171 | -10/Materials | Discovered new exit (range 9) 316 | -10/Materials | Build established: Mutant 340 | -10/Materials | Discovered new exit (range 13) 551 | -10/Materials | Discovered new exit (range 7) 570 | -10/Materials | Entered Subcaves 571 | -10/Subcaves | Continued accompanying wandering Federalists (1) 571 | -10/Subcaves | Approached by a straggling Scientist 575 | -10/Subcaves | Shifting Twisted Machinery released Sub. Laser 577 | -10/Subcaves | Learned location of Zion (-7) 577 | -10/Subcaves | Met a Zionite searching for "candidates" 589 | -10/Subcaves | Learned Materials security intel 624 | -10/Subcaves | Shifting Twisted Machinery released Sub. Power Source 1064 | -10/Subcaves | Core integrity fell below 50% 1089 | -10/Subcaves | Lost 3 parts (2n1w) 1160 | -10/Subcaves | Visited triangular shrine 1174 | -10/Subcaves | Found Prototype Device 1174 | -10/Subcaves | Identified V3-11A's Pendant 1179 | -10/Subcaves | Befriended Subdweller 1209 | -10/Subcaves | Befriended Subdweller 1481 | -10/Subcaves | Discovered new exit (range 8) 1485 | -10/Subcaves | Visited Clippyterm 1493 | -10/Subcaves | Learned location of Deep Caves (-7) 2134 | -10/Subcaves | A swath of the cavern ceiling suddenly collapsed 2267 | -10/Subcaves | Visited 4L-MR0's lab 2288 | -10/Subcaves | Found Tower Shield 2546 | -10/Subcaves | Discovered new exit (range 7) 2584 | -10/Subcaves | Ambushed by angry Subdweller bent on revenge 2584 | -10/Subcaves | Befriended Subdweller 2704 | -10/Subcaves | Befriended Subdweller 2704 | -10/Subcaves | Befriended Subdweller 3344 | -10/Subcaves | Befriended Subdweller 3778 | -10/Subcaves | Shifting Twisted Machinery released Sub. Monowheel 3778 | -10/Subcaves | Shifting Twisted Machinery released Mak. Axe 3827 | -10/Subcaves | Shifting Twisted Machinery released Battle Rifle 3834 | -10/Subcaves | Shifting Twisted Machinery released Battle Cannon 3964 | -10/Subcaves | Befriended Subdweller 4064 | -10/Subcaves | Befriended Subdweller 4237 | -10/Subcaves | Disturbed a concealed Subdweller 4239 | -10/Subcaves | Befriended Subdweller 4304 | -10/Subcaves | Befriended Subdweller 4304 | -10/Subcaves | Befriended Subdweller 4458 | -10/Subcaves | Core integrity fell below 20% 4494 | -10/Subcaves | Discovered new exit (range 16) 5633 | -10/Subcaves | A Subdweller sparked back to life 5633 | -10/Subcaves | A Subdweller sparked back to life 5633 | -10/Subcaves | A Subdweller sparked back to life 5634 | -10/Subcaves | Befriended Subdweller 5634 | -10/Subcaves | Befriended Subdweller 5672 | -10/Subcaves | Found Rainbow Chip 6002 | -10/Subcaves | A swath of the cavern ceiling suddenly collapsed 6036 | -10/Subcaves | Build established: Hauler-Mutant 7158 | -10/Subcaves | Found SUBCON Basin 7407 | -10/Subcaves | Entered Scraptown 7407 | -9/Scraptown | Accompanied by 5 allies 7489 | -9/Scraptown | Heard Great Nut preacher, LISTEN AND RECITE! 7724 | -9/Scraptown | Visited SPCMW 7883 | -9/Scraptown | Scanned Subdweller tech in exchange for log data 7892 | -9/Scraptown | Learned location of Warlord (-5) 7974 | -9/Scraptown | Discovered new exit (range 11) 9215 | -9/Scraptown | Visited TADAMA 9310 | -9/Scraptown | Visited UFD Registry 9310 | -9/Scraptown | Registered with UFD as "Gaussparser" 9371 | -9/Scraptown | Visited Awakened 9749 | -9/Scraptown | Visited Comm Corps 9952 | -9/Scraptown | Visited Analyses Database 10140 | -9/Scraptown | Visited Derelict Rescue Squad 10272 | -9/Scraptown | Visited Curators Association 10357 | -9/Scraptown | Visited Research Penetration Think Tank 10476 | -9/Scraptown | Visited Chapter 10 10599 | -9/Scraptown | Visited Scrapoid Research Area 10665 | -9/Scraptown | Visited DA-N13 Charitable Foundation 10689 | -9/Scraptown | Found DCF Scrap (29 items) 10853 | -9/Scraptown | Visited Observation Area 10908 | -9/Scraptown | Delivered Scrap Shield to a Scientist 11079 | -9/Scraptown | Visited Science Guys 11142 | -9/Scraptown | Visited Supply Room 11239 | -9/Scraptown | Found DRS Beacon 12197 | -9/Scraptown | Met Optimus 12197 | -9/Scraptown | Accepted into 0bPrime 12246 | -9/Scraptown | Discovered new exit (range 5) 12270 | -9/Scraptown | Entered Factory 12270 | -6/Factory | Accompanied by 4 allies 12270 | -6/Factory | Evolved 8 slots: Power x1, Propulsion x3, Utility x3, Weapon x1 12271 | -6/Factory | Identified exit to Extension 12271 | -6/Factory | Attached Rainbow Chip, gained temporary slots: Power, Propulsion, Utility, Weapon 12281 | -6/Factory | Attached Tower Shield, gained temporary slots: Power, Propulsion x2, Utility x2, Weapon x2 12473 | -6/Factory | Build established: Derelict-Mutant 12850 | -6/Factory | Lost 3 allies 12924 | -6/Factory | Lost 13 parts (2p5n3u3w) 13150 | -6/Factory | Cargo convoy interrupted 13377 | -6/Factory | Lost 16 parts (3p5n4u4w) 13394 | -6/Factory | Core integrity fell below 50% 13519 | -6/Factory | Entered Extension 13756 | -6/Extension | Build established: Scavenger-Mutant 14244 | -6/Extension | Disrupted transfer network 14570 | -6/Extension | Lost 3 parts (1p1n1u) 14602 | -6/Extension | Spotted B-75 Beast 14761 | -6/Extension | Lost 5 parts (3n1u1w) 14948 | -6/Extension | Lost 9 parts (3p4n2w) 14977 | -6/Extension | Destroyed B-75 Beast 15215 | -6/Extension | Spotted B-75 Beast 15255 | -6/Extension | Core integrity fell below 20% 15349 | -6/Extension | Destroyed B-75 Beast 15376 | -6/Extension | Lost 8 parts (1p5n2w) 15582 | -6/Extension | Lost 3 parts (1p2n) 15615 | -6/Extension | Build established: Scavenger-Gunner 15949 | -6/Extension | Rescued A7 16244 | -6/Extension | Discovered new exit (range 16) 16245 | -6/Extension | Discovered new exit (range 15) 16282 | -6/Extension | Identified exit to Factory 16285 | -6/Extension | Identified exit to Cetus 16541 | -6/Extension | Door terminal overloaded 16541 | -6/Extension | Rescued a captive Derelict 16542 | -6/Extension | Rescued a captive Derelict 16783 | -6/Extension | Energy Cycler disabled 16784 | -6/Extension | Rescued a captive Derelict 16784 | -6/Extension | Rescued a captive Derelict 16784 | -6/Extension | Rescued a captive Derelict 16789 | -6/Extension | Rescued a captive Derelict 16792 | -6/Extension | Rescued a captive Derelict 16796 | -6/Extension | Rescued a captive Derelict 17204 | -6/Extension | Entered Cetus 17204 | -6/Cetus | Accompanied by 8 allies (A7) 17209 | -6/Cetus | Acquired a Cetus Manufacturing Module code from A7 17244 | -6/Cetus | Spotted Cetus Guard 17402 | -6/Cetus | Build established: Scavenger-Tank 17438 | -6/Cetus | Started Cetus Manufacturing Module 17463 | -6/Cetus | Manufactured an Enhanced Grunt 17488 | -6/Cetus | Manufactured an Enhanced Grunt 17513 | -6/Cetus | Manufactured an Enhanced Grunt 17538 | -6/Cetus | Manufactured an Enhanced Grunt 17563 | -6/Cetus | Manufactured an Enhanced Grunt 17609 | -6/Cetus | Discovered new exit (range 16) 17839 | -6/Cetus | Entered Archives 17839 | -6/Archives | Accompanied by 8 allies (A7) 17922 | -6/Archives | Discovered new exit (range 15) 17943 | -6/Archives | Unable to access archive contents 17953 | -6/Archives | Discovered exit to Factory (range 14) 18008 | -6/Archives | Discovered new exit (range 14) 18286 | -6/Archives | Entered Hub_04(d) 18286 | -6/Hub_04(d) | Accompanied by 7 allies 18702 | -6/Hub_04(d) | Lost 3 allies 19000 | -6/Hub_04(d) | Network Hub disabled 19038 | -6/Hub_04(d) | Discovered exit to Factory (range 11) 19093 | -6/Hub_04(d) | Entered Factory 19093 | -5/Factory | Evolved 2 slots: Utility x2 19094 | -5/Factory | Identified exit to Upper Caves 19648 | -5/Factory | Loaded intel: 8 recycling unit locations 20329 | -5/Factory | Fabricated Antimatter Reactor? 20708 | -5/Factory | Entered Upper Caves 20710 | -5/Upper Caves | UFD Scientist delivered a prototype 20717 | -5/Upper Caves | Activated DRS Beacon 20721 | -5/Upper Caves | Found Prototype Protection 20860 | -5/Upper Caves | Encountered a Warlord checkpoint 20964 | -5/Upper Caves | Learned location of 1 exit from Factory 21114 | -5/Upper Caves | Learned Factory garrison access intel 21160 | -5/Upper Caves | Discovered new exit (range 7) 21808 | -5/Upper Caves | Attracted the attention of an 0b10 checkpoint 21812 | -5/Upper Caves | Learned location of Armory (-4) 22962 | -5/Upper Caves | Entered another Upper Caves area 22999 | -5/Upper Caves | Discovered new exit (range 21) 23442 | -5/Upper Caves | Discovered new exit (range 80) 23731 | -5/Upper Caves | Attacked by a delusional Derelict stockpiling parts 23998 | -5/Upper Caves | Learned Factory terminal intel 24020 | -5/Upper Caves | Found Alien Artifact 24434 | -5/Upper Caves | Attracted the attention of an 0b10 checkpoint 24936 | -5/Upper Caves | Spotted B-75 Beast 24946 | -5/Upper Caves | Destroyed B-75 Beast 26353 | -5/Upper Caves | Entered Warlord 27201 | -5/Warlord | Opened side exit 27220 | -5/Warlord | Warlord's base attacked by MAIN.C 27368 | -5/Warlord | Lost 5 allies 27374 | -5/Warlord | System corruption reached 10% 27570 | -5/Warlord | Warlord forces counterattacked 27600 | -5/Warlord | Rebuked by Warlord 27694 | -5/Warlord | Build established: Scavenger-Mutant 27791 | -5/Warlord | Found Prototype Energy Gun 27791 | -5/Warlord | Identified Vortex Rifle 27800 | -5/Warlord | Found Prototype Energy Cannon 27800 | -5/Warlord | Identified Vortex Driver 27895 | -5/Warlord | Warlord base infiltrated, sounded retreat 28060 | -5/Warlord | Found Prototype Reactor 28060 | -5/Warlord | Identified Vortex Chain Reactor 28067 | -5/Warlord | Found Prototype Device 28067 | -5/Warlord | Identified Exp. Cloaking Device 28075 | -5/Warlord | Found Prototype Hackware 28075 | -5/Warlord | Identified System Mapper 28086 | -5/Warlord | Found Prototype Processor 28086 | -5/Warlord | Identified Exp. Core Analyzer 28212 | -5/Warlord | Discovered new exit (range 14) 28230 | -5/Warlord | Entered Proximity Caves 28241 | -4/Proximity Caves | Spotter reported a threat 28350 | -4/Proximity Caves | Spotter reported a threat 28754 | -4/Proximity Caves | Build established: Scavenger-Tank 28800 | -4/Proximity Caves | Attracted the attention of an 0b10 checkpoint 29818 | -4/Proximity Caves | Discovered new exit (range 11) 30130 | -4/Proximity Caves | Entered Factory 30130 | -4/Factory | Evolved 2 slots: Utility x1, Weapon x1 30131 | -4/Factory | Identified exit to Armory 30132 | -4/Factory | Identified exit to Research 30133 | -4/Factory | Loaded intel: 26 terminal locations 30134 | -4/Factory | Loaded intel: 4 garrison access locations 30380 | -4/Factory | Search patrols dispatched 30430 | -4/Factory | Build established: Scavenger-Gunner 30505 | -4/Factory | Fabricated Cld. Plasma Cannon? 30566 | -4/Factory | Spotted B-86 Titan 30573 | -4/Factory | Destroyed B-86 Titan 30766 | -4/Factory | Loaded intel: 8 recycling unit locations 30766 | -4/Factory | Learned location of Protoforge (-2) 31753 | -4/Factory | Build established: Scientist-Gunner 32417 | -4/Factory | Entered Armory 32417 | -4/Armory | Identified Enh. Scrap Shield 32418 | -4/Armory | Identified Dimensional Node Initializer 32418 | -4/Armory | Initialized slip node 32447 | -4/Armory | Lost 14 parts (3p4n5u2w) 32465 | -4/Armory | Spotted B-86 Titan 32477 | -4/Armory | Released all parts (9) 32610 | -4/Armory | Core integrity fell below 50% 32636 | -4/Armory | Core integrity fell below 20% 32654 | -4/Armory | Destroyed B-86 Titan 32661 | -4/Armory | Lost 7 parts (2n2u3w) 32716 | -4/Armory | Destroyed by S-27 Virus with Autogun Last Messages --------------- 32666_ Dropped Cld. Plasma Cannon. 32667_ Acquired 6 matter. 32668_ Acquired 4 matter. 32677_ System corrupted: Energy discharge (-34). 32679_ Attempting to rewire I-47 Archangel. 32688_ ALERT: Potential suspicious activity detected, Programmers report to Armory Zone 6T. 32688_ Attempting to rewire I-47 Archangel. 32688_ I-47 Archangel rewired. 32695_ Dropped Humpback. 32695_ Acquired Reaction Control System. 32696_ Acquired 7 matter. 32701_ Acquired Hcp. Storage Unit. 32703_ Acquired Imp. Weapon Cycler. 32707_ Vortex penetrates Component Storage. 32710_ Vortex Driver implodes. 32710_ Vortex penetrates Component Storage. 32712_ Matter Neutralizer+ destroyed. 32714_ S-27 Virus destroyed. Map ----- +----------------------------------------------------+ | ????????# #?# """ #????????? | | ????????# #?# #????????? | | ??????? # #?#####+###+###????? | | ????? # #???# #????? | | """"" # #???# ]//= ! ###??? | | ?# #???# != ][ + #??? | | ? ??# #???# ] # #??? | | #+# ##### ############### #??? | | ! #??? | | ##### #??? | | #???# #??? | | #???# #??? | | " #??## #??? | | #??#" ""Y"" #?#? | | " #??#% """"" # #? | | % ###??#; ;##### # #### | | #??#; ; ?# # # # # | | #??#; ; ### ## ### | | ###;#;;;;;##### ## | | "" "" #""# ss !/ # # | | ""F"" /s s *!=%# ### | | "" ; %* |# ### | | " = |%# ### | | " " ] # | | ##+###### ""% ### | | # ???# """ " @ ## | | # """" ?# ; ##? | | # """" ## i# #?? | | # """" ## % ; #?? | | # """" ## # #?? | | # ## ! ; #?? | | ####################"; #?? | | ?? #?? | | ##+#?????????# #?? | | ?????????????# !! #?? | | ?????????????# ! ""T" #?? | | ???????####### """"" #?? | | ????+ #?? | | ????# #?? | | ????? ######### ##+##### #?? | | ??????????????# # # #?? | | ??????????????# ?# " " ####?? | | ??????????????# ?# " "??????? | | ??????????????#??# " "??????? | | ?????????????????# " "??????? | | ?????????????????# ??????? | | ?????????????????######??????? | | ?????????????????????????????? | | ?????????????????????????????? | | ?????????????????????????????? | +----------------------------------------------------+ Best States ------------- Heat Dissipation 105 Coolant Potential 65 Energy Generation 75 Energy Capacity 950 Matter Stores 300 Matter Capacity 300 Sight Range 22 Robot Scan Range 15 Terrain Scan Density 10 Cloak Strength 4 Additional Mass Support 12 Armor Coverage 2000 Resistance: KI 20 Resistance: TH 20 Weapon Cycling 30 Phase Shifting 5 Evasion (%) 63 Targeting Accuracy 18 Core Analysis 8 Recoil Reduction 6 Particle Charging 22 Offensive Hacking 20 Item Schematics ----------------- Cld. Plasma Cannon | -4/Factory | Scanalyzed Centrium Heavy Treads | -4/Factory | Scanalyzed Multitool | -4/Factory | Scanalyzed Neutrino Core | -4/Factory | Scanalyzed Lgt. Antimatter Reactor | -4/Factory | Scanalyzed Robot Schematics ------------------ None Fabricated ------------ Antimatter Reactor | x2 | -5/Factory | Preloaded Cld. Plasma Cannon | x1 | -4/Factory Repaired ---------- Nothing Studied --------- Variable Charge Gun | -4/Factory | Hacked Adv. Medium Treads | -4/Factory | Hacked Imp. Medium Treads | -4/Factory | Hacked Matter Neutralizer | -4/Factory | Hacked Med. Treads | -4/Factory | Hacked Lgt. Antimatter Reactor | -4/Factory | Hacked Neutrino Core | -4/Factory | Hacked Smartbomb Launcher | -4/Factory | Hacked Alien Tech Used ----------------- Dimensional Node Initializer Achievements -------------- A Powerful Ally? Charge!!! Giant Slayer Loot Taster Low-level Research Preemptive Strike Protector Slippery One Challenges ------------ None Game ------ Seed AngularImprinterStatue Manual? 1 Play Time 03:39:20 Cumulative 86.4 hours Start 2026.01.26 @ 21:57:52 End 2026.01.27 @ 01:54:53 Sessions 1 Manual Loads 0 Difficulty Rogue Special Mode None Game No. 99 Rogue 99 Adventurer 0 Explorer 0 Win Type - Total 2 Types 2/0/0/0/0/0/0/0/0/0 Lore% 55 Gallery% 52 Achievement% 43 Wizard Run 0 Options --------- Layout 2 ASCII 0 Keyboard 1 Movement Numpad Keybinds 0 Fullscreen 2 Font 24/Smallcaps Map View 50x44 Zoom Use 0% Tactical HUD 1 Map Filters NONE Filters NONE Steam 1 RUN: cd7f742d-680b-4d4f-9c87-00aa23d1470e